Cogmind - Beta 12 @@@ ROGUE MODE // 2023.03.11 @ 23:21:33 // Winter2019/RPGLIKE Player: Wayland Result: Destroyed by Y-45 Defender with Beam Rifle Performance ------------- Evolutions (1) 500 Regions Visited (3) 600 Robots Destroyed (4) 20 Value Destroyed (40) 40 Prototype IDs (1) 20 Alien Tech Used (0) 0 Bonus (0) 0 TOTAL SCORE: 1180 Bonus ------- None Cogmind --------- Core Integrity 0/650 Matter 260/300 Energy 250/250 System Corruption 0% Temperature Cool (9) Movement Rolling (90) Location -9/Materials Parts ------- > --- POWER (1) -------- Ion Engine > --- PROPULSION (2) --- Wheel Compact Wheel > --- UTILITY (3) ------ Experimental Sensor Array System Shield System Shield > --- WEAPON (2) ------- Small Laser Heavy Hammer > --- INVENTORY (2) ---- EM Pulse Gun Mining Laser Peak State ------------ > --- POWER ------------ Ion Engine > --- PROPULSION ------- Wheel Compact Wheel > --- UTILITY ---------- Experimental Sensor Array System Shield System Shield > --- WEAPON ----------- Small Laser Heavy Hammer > --- INVENTORY -------- EM Pulse Gun Mining Laser [Rating: 21] Favorites ----------- Power Ion Engine Engine Ion Engine Propulsion Wheel Leg Aluminum Leg Wheel Wheel Utility Experimental Sensor Array Device Experimental Sensor Array Hackware System Shield Weapon Small Laser Energy Gun Small Laser Ballistic Gun Assault Rifle Special Weapon Mining Laser Impact Weapon Heavy Hammer Build | -11 -10 -10 -9 ------- Run | Jun Mat Min Mat Slots Evolved 4 | 4 . . . Power . | . . . . Propulsion 1 | 1 . . . Utility 2 | 2 . . . Weapon 1 | 1 . . . Parts Attached 10 | 5 . 2 3 Power . | . . . . Engine . | . . . . Core . | . . . . Reactor . | . . . . Propulsion 2 | 2 . . . Treads . | . . . . Leg . | . . . . Wheel 2 | 2 . . . Hover . | . . . . Flight . | . . . . Utility 3 | . . 1 2 Device 1 | . . 1 . Storage . | . . . . Processor . | . . . . Hackware 2 | . . . 2 Protection . | . . . . Artifact . | . . . . Weapon 5 | 3 . 1 1 Energy Gun 2 | 2 . . . Energy Cannon . | . . . . Ballistic Gun 1 | 1 . . . Ballistic Cannon . | . . . . Launcher . | . . . . Special Weapon 1 | . . 1 . Impact Weapon 1 | . . . 1 Slashing Weapon . | . . . . Piercing Weapon . | . . . . Special Melee Weapon . | . . . . Unidentified Prototypes 1 | . . 1 . Parts Lost . | . . . . Power . | . . . . Propulsion . | . . . . Utility . | . . . . Weapon . | . . . . Highest Loss Streak . | . . . . To Critical Strikes . | . . . . Average Slot Usage (%) 73 | . 62 71 85 Engine 12 | . 12 12 12 Wheel 25 | . 25 25 25 Device 7 | . . 8 12 Hackware 3 | . . . 10 Energy Gun 20 | . 25 24 12 Special Weapon 3 | . . . 10 Naked Turns . | . . . . Heaviest Build 9 | 8 8 9 8 Greatest Support 26 | 26 26 26 26 Greatest Overweight (x) . | . . . . Average Overweight (x) . | . . . . Largest Inventory Capacity 2 | 1 1 1 2 Average Capacity 1 | . 1 1 1 Most Carried 2 | 1 1 1 2 Average Carried 1 | . . 1 1 Final Capacity 2 | 1 1 1 2 Final Carried 2 | 1 1 1 2 Class Distribution -------------------- 88% | Mutant 11% | Hacker-Mutant Dominant Class ---------------- Mutant | -10/Materials Mutant | -10/Mines Mutant | -9/Materials Resources | -11 -10 -10 -9 ----------- Run | Jun Mat Min Mat Matter Collected 260 | 200 50 10 . Remotely . | . . . . Salvage Created 69 | . 69 . . Parts 5 | . 4 . 1 Haulers Intercepted . | . . . . Recyclers Shooed . | . . . . Parts Field Recycled . | . . . . Retrieved Matter . | . . . . Parts Self-Destructed . | . . . . Prevented . | . . . . Kills | -11 -10 -10 -9 ------- Run | Jun Mat Min Mat Combat Hostiles Destroyed 4 | . 3 . 1 Melee 1 | . . . 1 Guns 3 | . 3 . . Classes Destroyed 1 | . 1 . . Swarmer 4 | . 3 . 1 Best Kill Streak 3 | . 3 . 1 Combat Bots Only 3 | . 3 . 1 Max Kills in Single Turn 1 | . 1 . 1 Gunslinging . | . . . . Exploded . | . . . . Melee 1 | . . . 1 Uniques/NPCs Destroyed . | . . . . Combat | -11 -10 -10 -9 -------- Run | Jun Mat Min Mat Damage Taken 806 | . 184 . 622 Core 651 | . 152 . 499 Absorbed by Shields . | . . . . Redirected to Core 494 | . 93 . 401 Core Remaining (%) 88 | 100 . 76 . Volleys Fired 8 | . 4 1 3 Largest 2 | . 2 1 1 Hottest 100 | . 80 100 100 Shots Fired 12 | . 8 1 3 Gun 8 | . 8 . . Cannon . | . . . . Launcher . | . . . . Special 4 | . . 1 3 Kinetic . | . . . . Thermal 8 | . 4 1 3 Explosive . | . . . . Electromagnetic 4 | . 4 . . Robot Hit Streak 2 | . 2 . . Robot Miss Streak 1 | . 1 . . Penetration Max . | . . . . Secondary Targets . | . . . . Shots Hit Robots 12 | . 4 . 8 Core Hits 3 | . 3 . . Critical Kills . | . . . . Critical Parts Destroyed 1 | . . . 1 Critical Strikes 1 | . . . 1 Smash 1 | . . . 1 Melee Attacks 12 | . . . 12 Impact 12 | . . . 12 Slashing . | . . . . Piercing . | . . . . Sneak Attacks . | . . . . Combat Hostiles . | . . . . Follow-up Attacks . | . . . . Damage Inflicted 275 | . 47 . 228 Guns 47 | . 47 . . Cannons . | . . . . Explosions . | . . . . Melee 228 | . . . 228 Ramming . | . . . . Kinetic . | . . . . Thermal 23 | . 23 . . Explosive . | . . . . Electromagnetic 24 | . 24 . . Impact 228 | . . . 228 Slashing . | . . . . Piercing . | . . . . Highest Corruption . | . . . . Average Corruption . | . . . . Corruption Purged . | . . . . Corruption Blocked . | . . . . Overload Shots . | . . . . Overflow Damage 31 | . . . 31 Projectiles . | . . . . Explosions . | . . . . Melee 31 | . . . 31 Knockbacks . | . . . . Impact . | . . . . Kinetic . | . . . . Secondary . | . . . . Self-Inflicted Damage . | . . . . Shots . | . . . . Rammed . | . . . . Targets Rammed . | . . . . Kicked . | . . . . Crushed . | . . . . Highest Temperature 72 | . 72 20 29 Average Temperature 24 | . 37 12 15 Received Heat Transfer 210 | . 6 . 204 Siege Activations . | . . . . Robots Corrupted . | . . . . Combat Hostiles . | . . . . Parts Fried . | . . . . Impact Corruptions 1 | . . . 1 Robots Melted . | . . . . Combat Hostiles . | . . . . Parts Melted . | . . . . Heat Transferred 50 | . 50 . . Parts Sabotaged . | . . . . Parts Stolen . | . . . . Parts Stripped . | . . . . Power Chain Reactions . | . . . . Missiles Intercepted . | . . . . Alert | -11 -10 -10 -9 ------- Run | Jun Mat Min Mat Peak Influence 190 | . 115 45 190 Initial 44 | . . 44 17 Average 51 | . 32 44 79 Maximum Alert Level . | . . . . Low Security (%) 100 | 100 100 100 100 Level 1 . | . . . . Level 2 . | . . . . Level 3 . | . . . . Level 4 . | . . . . Level 5 . | . . . . High Security . | . . . . Max Security . | . . . . Squads Dispatched 2 | . 1 . 1 Investigation . | . . . . Extermination . | . . . . Reinforcement 2 | . 1 . 1 Assault . | . . . . Garrison . | . . . . Intercept . | . . . . Searches Triggered . | . . . . Construction Impeded . | . . . . Haulers Reinforced . | . . . . Active Scanning Responses . | . . . . Cargo Convoy Interrupts . | . . . . Stealth | -11 -10 -10 -9 --------- Run | Jun Mat Min Mat Distress Signals . | . . . . Communications Jammed . | . . . . Distress Signals . | . . . . Times Spotted 23 | . 10 . 13 Peak Tracking Total 8 | . 5 . 8 Tactical Retreats 4 | . 1 . 3 Traps | -11 -10 -10 -9 ------- Run | Jun Mat Min Mat Traps Triggered . | . . . . Indirectly . | . . . . Trap Hack Attempts . | . . . . Triggered . | . . . . Disarmed . | . . . . Reprogrammed . | . . . . Reused . | . . . . Traps Extracted . | . . . . Installed 1 | . . 1 . Triggered . | . . . . Machines | -11 -10 -10 -9 ---------- Run | Jun Mat Min Mat Machines Disabled . | . . . . Max in Single Turn . | . . . . Machines Repaired . | . . . . Machines Sabotaged . | . . . . Overloaded Fab Kills . | . . . . Hacking | -11 -10 -10 -9 --------- Run | Jun Mat Min Mat Machines Accessed 1 | . . . 1 Terminals 1 | . . . 1 Fabricators . | . . . . Repair Stations . | . . . . Recycling Units . | . . . . Scanalyzers . | . . . . Garrison Access . | . . . . Total Hacks 2 | . . . 2 Successful 1 | . . . 1 Failed 1 | . . . 1 Catastrophic . | . . . . Database Lockouts . | . . . . Manual 1 | . . . 1 Terminals 2 | . . . 2 Fabricators . | . . . . Repair Stations . | . . . . Recycling Units . | . . . . Scanalyzers . | . . . . Garrison Access . | . . . . Terminal Hacks 1 | . . . 1 Terminal Index 1 | . . . 1 Fabricator Hacks . | . . . . Repair Station Hacks . | . . . . Recycling Unit Hacks . | . . . . Scanalyzer . | . . . . Garrison Access Hacks . | . . . . Unauthorized Hacks . | . . . . Terminals . | . . . . Fabricators . | . . . . Repair Stations . | . . . . Recycling Units . | . . . . Scanalyzers . | . . . . Garrison Access . | . . . . Data Cores Recovered . | . . . . Used . | . . . . Hacking Detections 1 | . . . 1 Full Trace Events . | . . . . Feedback Events . | . . . . Feedback Blocked . | . . . . Robot Schematics Acquired . | . . . . Robots Built . | . . . . Authchips . | . . . . Time . | . . . . Total Robot Build Rating . | . . . . Part Schematics Acquired . | . . . . Parts Built . | . . . . Authchips . | . . . . Time . | . . . . Total Part Build Rating . | . . . . Parts Repaired . | . . . . Time . | . . . . Parts Recycled . | . . . . Recycled Matter . | . . . . Retrieved Matter . | . . . . Retrieved Components . | . . . . Parts Scanalyzed . | . . . . Part Schematics Acquired . | . . . . Parts Damaged . | . . . . Bothacking | -11 -10 -10 -9 ------------ Run | Jun Mat Min Mat Used RIF Installer . | . . . . Robots Hacked . | . . . . Non-combat . | . . . . Combat . | . . . . Robot Hacks Applied . | . . . . Relay Couplers Released . | . . . . Fabnet Peak Effective % . | . . . . Robots Rewired . | . . . . Allies Hacked . | . . . . Hacks Repelled . | . . . . Allies | -11 -10 -10 -9 -------- Run | Jun Mat Min Mat Total Allies . | . . . . Largest Group . | . . . . Highest-Rated Group . | . . . . Highest-Rated Ally . | . . . . Total Orders . | . . . . Ally Attacks . | . . . . Total Damage . | . . . . Kills . | . . . . Allies Corrupted . | . . . . Allies Melted . | . . . . Intel | -11 -10 -10 -9 ------- Run | Jun Mat Min Mat Robot Analysis Total . | . . . . Derelict Logs Recovered 2 | . . 2 . Drone Launches . | . . . . Drone Recoveries . | . . . . Exploration | -11 -10 -10 -9 ------------- Run | Jun Mat Min Mat Turns Passed 715 | 18 149 334 214 Spaces Moved 690 | 9 148 357 176 Core . | . . . . Treads . | . . . . Legs 3 | 3 . . . Wheels 687 | 6 148 357 176 Hover . | . . . . Flight . | . . . . Fastest Speed 80 | 80 90 90 90 Average Speed 90 | 98 90 90 90 Slowest Speed 120 | 120 90 90 90 Overloaded Moves . | . . . . Propulsion Burnouts . | . . . . Robots Hopped . | . . . . Cave-ins Triggered . | . . . . Exploration Rate (%) 35 | 1 36 75 30 Regions Visited 3 Branch Regions 1 Pre-discovered Areas . | . . . . Known Exits Taken . | . . . . Unknown Exits Taken 3 | 1 1 1 . Scrap Searched 1 | . . 1 . Spaces Dug 4 | . . 1 3 Terrain Destroyed 4 | . . 1 3 Melee . | . . . . Projectile 4 | . . 1 3 AOE . | . . . . Terrain Rammed . | . . . . Walls Destroyed . | . . . . Machines Disabled . | . . . . Actions | -11 -10 -10 -9 --------- Run | Jun Mat Min Mat Total 737 | 16 156 365 200 Wait 13 | . 3 5 5 Move 687 | 8 147 356 176 Hop . | . . . . Pick Up 4 | 2 1 . 1 Fast Attach 5 | 2 . 1 2 Attach 1 | 1 . . . Detach . | . . . . Swap 4 | 2 . 1 1 Drop 2 | 1 1 . . Fire 8 | . 4 1 3 Melee 12 | . . . 12 Ram . | . . . . Kick . | . . . . Crush . | . . . . Escape Stasis . | . . . . Rewire . | . . . . Trap 1 | . . 1 . Miscellaneous . | . . . . Route ------- -11/Junkyard -10/Materials -10/Mines -9/Materials History --------- Turn | Location | Event 1 | -11/Junkyard | Discovered new exit (range 1) 8 | -11/Junkyard | Upgraded with Propulsion slot (x1) 8 | -11/Junkyard | Upgraded with Utility slot (x2) 8 | -11/Junkyard | Upgraded with Weapon slot (x1) 19 | -11/Junkyard | Entered Materials 152 | -10/Materials | Discovered new exit (range 14) 168 | -10/Materials | Entered Mines 214 | -10/Mines | Met a Derelict bent on vengeance 222 | -10/Mines | Learned Materials machine intel 236 | -10/Mines | Learned Materials garrison access intel 248 | -10/Mines | Found a damaged Exp. Sensor Array with a note attached 250 | -10/Mines | Found Prototype Device 250 | -10/Mines | Identified Exp. Sensor Array 309 | -10/Mines | Build established: Mutant 435 | -10/Mines | Found a hidden stash of uninstalled traps 490 | -10/Mines | Discovered new exit (range 13) 502 | -10/Mines | Entered Materials 503 | -9/Materials | Loaded intel: 48 machine locations 504 | -9/Materials | Reached level 2 633 | -9/Materials | Core integrity fell below 50% 679 | -9/Materials | Core integrity fell below 20% 716 | -9/Materials | Destroyed by Y-45 Defender with Beam Rifle Last Messages --------------- Downloaded coordinate data. 00508_ Upgraded: Inventory Capacity (+1) 00508_ Upgraded: Sight Range (+1) 00508_ Upgraded: Hack Defense % (+5) 00508_ Upgraded: KI Resistance % (+5) 00508_ Upgraded: TH Resistance % (+5) 00563_ U-05 Engineer builds a Wall. 00573_ O-16 Technician: "IFF HANDSHAKE FAILED. SECURING TERMINAL." 00581_ ALERT: Hostiles spotted, dispatching reinforcements to Terminal M006. 00605_ Acquired Hvy. Hammer. 00624_ Acquired System Shield. 00630_ S-10 Pest destroyed. 00636_ Critical hit (Burn: +37). 00653_ K-01 Serf collects debris. 00661_ S-10 Pest destroyed. 00697_ S-10 Pest suffers critical hit (Smash). 00697_ Destroyed Lgt. Ion Engine. 00697_ S-10 Pest system corrupted by crushing effect. 00697_ S-10 Pest destroyed. 00710_ Critical hit (Burn: +37). Map ----- +----------------------------------------------------+ | ?????????????????????????????????????????????????? | | ?????????????????????????????????????????????????? | | ?????????????????????????????????????????????????? | | ?????????????????????????????????????????????????? | | ?????????????????????????????????????????????????? | | ?????????????????????????????????????????????????? | | ?????????????????????????????????????????????????? | | ?????????????????????????????????????????????????? | | ????????"""??????????????????????????????????????? | | ????????"""??????????????????????????????????????? | | ????????"""???????????????#??????????????????????? | | ?????????????????????????# #?????????????????????? | | ????????"""??""?"""?????? ???????"""???????????? | | ????????"""??""?"""??????[ ???????"""???????????? | | ?? ???"""??"T?"""?????? ???????"""???????????? | | ?# #???????""?????????? """???????????????????? | | ?# #???????""?"""?????? """?????"""???????????? | | ?# +??"?"?????"""????"?" """?????"""???????????? | | ?# #??"R"?????"""????"Y" ???????"""???????????? | | ?# #??"""????????????""" ?????????????????????? | | # ############+########/######+#######????????? | | # ???????? | | ?/ ???????? | | ?# w ???????? | | ?# #????#########/######Y########??????????????? | | ?# #???????# # @% #????????????????? | | ?# #???????# """?""" # #????????????????? | | ?# ######### """?""" # #????????????????? | | ?# ## """ """ # #????????????????? | | ## ## # #????????????????? | | + ! # #????????????????? | | ### ######/#########+### #????????????????? | | ??# ## =##### # #????????????????? | | ??#+## %/ # #????????????????? | | ?????# %##### ##########????????????????? | | ?????# #???# #?????????????????????????? | | ?????# #???# #?????????????????????????? | | ?????# #???# #?????????????????????????? | | ?????# #???# #?????????????????????????? | | ?????# #???# #?????????????????????????? | | ?????###########???# #?????????????????????????? | | ???????????????????# #?????????????????????????? | | ??????????????????? ?????????????????????????? | | ??????????????????? ?????????????????????????? | | ??????????????????? +????????????????????????? | | ??????????????????? #????????????????????????? | | ???????"?????"????? #????????????????????????? | | ???????"??"??"?????######????????????????????????? | | ???????"""""""???????????????????????????????????? | | ?????????????????????????????????????????????????? | +----------------------------------------------------+ Best States ------------- Heat Dissipation 25 Energy Generation 10 Energy Capacity 250 Matter Stores 300 Matter Capacity 300 Sight Range 17 Robot Scan Range 20 Terrain Scan Density 10 Resistance: KI 5 Resistance: TH 5 Evasion (%) 42 Offensive Hacking 5 Defensive Hacking 30 Item Schematics ----------------- None Robot Schematics ------------------ None Fabricated ------------ Nothing Alien Tech Used ----------------- None Achievements -------------- None Challenges ------------ None RPGLIKE | -11 -10 -10 -9 --------- Run | Jun Mat Min Mat Levels Raised 1 | . . . 1 XP Earned 5450 | 3000 350 500 1600 XP Spent 4375 | 2975 . . 1400 Upgrades 13 | 8 . . 5 Propulsion Slot 1 | 1 . . . Utility Slot 2 | 2 . . . Weapon Slot 1 | 1 . . . Core Integrity 1 | 1 . . . Inventory Capacity 2 | 1 . . 1 Sight Range 1 | . . . 1 Hack Attack % 1 | 1 . . . Hack Defense % 2 | 1 . . 1 KI Resistance % 1 | . . . 1 TH Resistance % 1 | . . . 1 Protomatter Created 7 | . . . 7 Protomatter Decayed 9 | . . . 9 Game ------ Seed AccelerationMappingSpoofer Manual? 0 Play Time 00:10:00 Cumulative 124.3 hours Start 2023.03.11 @ 22:59:57 End 2023.03.11 @ 23:21:33 Sessions 1 Manual Loads 0 Difficulty Rogue Special Mode Winter2019/RPGLIKE Game No. 192 Rogue 192 Adventurer 0 Explorer 0 Win Type - Total 2 Types 1/0/1/0/0/0/0/0/0 Lore% 50 Gallery% 59 Achievement% 50 Wizard Run 0 Options --------- ASCII 0 Keyboard 0 Movement Mouse Keybinds 0 Fullscreen 2 Font 24/Proggy Map View 113x50 Tactical HUD 1 Map Filters NONE Filters NONE Steam 1 RUN: f04c3f76-e30f-4f66-a3f4-3a9862c6c70c